bitfinex/quotes_ETHUSD_20250722
["timestamp","ask_amount","ask_price","bid_price","bid_amount"]
[1753191421792,0.002,3682.0,3681.9,12.24797368]
[1753191421965,0.002,3682.0,3681.9,12.38317368]
[1753191422163,0.002,3682.0,3681.9,5.09818466]
[1753191422367,0.002,3682.0,3681.9,12.38317368]
[1753191422574,0.002,3682.0,3681.9,13.14757368]
[1753191422775,1e-08,3682.1,3682.0,2.71591526]
[1753191422975,1e-08,3682.1,3682.0,2.99605907]
[1753191423177,1e-08,3682.1,3682.0,6.03032743]
[1753191423387,1e-08,3682.1,3682.0,6.00316828]
[1753191423589,1e-08,3682.2,3682.1,7.4258415]
[1753191423784,14.5,3684.0,3682.6,2.71547276]
[1753191423986,1e-08,3682.7,3682.6,7.53645742]
[1753191424284,1e-08,3682.7,3682.6,26.65482471]
[1753191424486,0.7559,3685.1,3684.3,2.71417051]
[1753191424699,0.7559,3685.1,3684.5,0.1352]
[1753191425005,2.71349035,3685.3,3685.0,0.1352]
[1753191425208,3.17959752,3685.3,3685.2,0.1352]
[1753191425414,20.67959752,3685.3,3685.2,0.38818044]
[1753191425599,2.7139988,3684.6,3684.5,4.568]
[1753191425777,3.18014303,3684.6,3684.5,0.252847]
[1753191425970,5.71404303,3684.6,3684.5,0.252847]
[1753191426211,3.0,3684.6,3684.5,0.252847]
[1753191426410,20.2139988,3684.6,3684.5,0.252847]
[1753191426580,20.6800988,3684.6,3684.5,0.252847]
[1753191428119,14.5,3684.6,3684.5,0.252847]
[1753191428328,0.4661,3685.1,3684.5,0.25285031]
[1753191428521,2.71343294,3685.4,3684.7,2.71392067]
[1753191428706,14.5,3685.3,3684.9,2.71377785]
[1753191429024,14.5,3685.3,3685.0,0.25285031]
[1753191429208,14.5,3685.3,3685.1,0.25285031]
[1753191429515,14.5,3685.3,3684.8,4.567]
[1753191429516,14.5,3685.3,3685.2,4.81885031]
[1753191430033,14.5,3685.3,3685.2,7.53240724]
[1753191430234,2.71309752,3685.9,3685.2,7.53240325]
[1753191430532,2.71297681,3686.0,3685.3,2.96631741]
[1753191430734,2.71297681,3686.0,3685.5,0.8009]
[1753191430936,2.71316278,3685.8,3685.6,4.81885031]
[1753191431109,3.17909628,3686.0,3685.7,4.81885031]
[1753191431110,0.4661,3686.0,3685.7,4.81885031]
[1753191431315,14.5,3685.9,3685.8,0.25285031]
[1753191431833,2.71223216,3687.0,3685.9,2.71302691]
[1753191432017,2.71231709,3686.9,3686.0,0.25285031]
[1753191432336,2.71245287,3686.7,3686.1,4.81785031]
[1753191432540,2.71270088,3686.4,3686.2,4.81785031]
[1753191432739,5.71239164,3686.8,3686.3,0.25285031]
[1753191432927,2.71260002,3686.5,3686.4,0.25285031]
[1753191433245,2.71294303,3686.1,3685.9,4.565]
[1753191433448,2.7127681,3686.3,3686.0,0.25203985]
[1753191433616,0.7989,3684.8,3683.4,0.8227]
[1753191433939,2.71462874,3683.8,3683.4,0.8227]
[1753191434143,2.7141949,3684.4,3683.4,0.8227]
[1753191434144,14.5,3683.7,3683.4,0.8227]
[1753191434362,14.5,3683.7,3683.4,1.2904]
[1753191434770,14.5,3683.7,3683.4,4.22218553]
[1753191435076,14.5,3683.7,3683.4,1.48016759]
[1753191435238,2.7142968,3684.2,3683.4,4.1950355]
[1753191435573,2.7143138,3684.2,3683.5,2.71480928]
[1753191435735,14.5,3684.1,3683.5,7.27880928]
[1753191435937,14.5,3684.1,3684.0,2.71444082]
[1753191436166,3.0,3684.6,3684.0,0.1352]
[1753191436375,0.4661,3685.0,3684.1,4.564]
[1753191436572,3.8082,3685.2,3684.1,4.564]
[1753191436573,2.71429346,3684.2,3684.1,4.564]
[1753191436874,0.4661,3684.2,3683.4,0.8227]
[1753191437056,2.71463045,3683.8,3683.7,4.564]
[1753191437249,14.5,3683.8,3682.8,0.8095]
[1753191437445,2.71519923,3683.0,3682.2,0.8095]
[1753191437630,2.71517784,3683.0,3682.9,0.1352]
[1753191437835,5.71532512,3682.9,3681.8,4.564]
[1753191438146,4.278,3683.0,3681.8,4.564]
[1753191438147,2.71562994,3682.4,3681.8,4.564]
[1753191438345,2.71562994,3682.4,3682.3,0.1352]
[1753191438549,2.71547276,3682.6,3682.3,0.1352]
[1753191438873,3.0,3682.7,3682.3,0.1352]
[1753191438874,2.71562024,3682.4,3682.3,0.1352]
[1753191439049,2.715567,3682.5,3682.3,0.1352]
[1753191439244,2.71562024,3682.4,3682.3,0.1352]
[1753191439560,3.0,3682.7,3681.9,2.7430991]
[1753191439741,17.21532657,3682.8,3682.6,0.1352]
[1753191439942,14.5,3682.8,3682.6,0.1352]
[1753191440137,14.5,3682.8,3682.7,2.71539902]
[1753191440462,3.0,3683.6,3682.6,0.9009]
[1753191440647,0.49701606,3683.5,3682.6,0.1352]
[1753191440854,2.7154188,3682.7,3682.3,4.564]
[1753191441280,3.18503744,3683.0,3682.6,0.1352]
[1753191441439,0.4698,3682.9,3682.6,0.1352]
[1753191441641,2.71562024,3682.4,3681.7,2.71611831]
[1753191441843,2.71560351,3682.5,3681.9,4.564]
[1753191442151,2.71562235,3682.4,3682.3,0.1352]
[1753191442352,2.71562024,3682.4,3682.3,0.1352]
[1753191442561,0.4698,3683.0,3682.3,0.1352]
[1753191442767,2.71550069,3682.6,3682.3,0.1352]
[1753191442955,0.4698,3682.5,3681.7,4.564]
[1753191443151,0.4698,3682.5,3681.8,2.71601137]
[1753191443460,3.1853465,3682.5,3682.4,0.1352]
[1753191445362,3.1853465,3682.5,3681.6,2.716204]
[1753191445363,0.4698,3682.5,3681.3,4.564]
[1753191445576,2.71576774,3682.2,3682.1,0.1352]
[1753191445882,9.3408838,3682.2,3682.1,0.38795092]
[1753191446044,6.5979,3682.2,3682.1,0.38795092]
[1753191446266,9.31366774,3682.2,3682.1,0.38795092]
[1753191446667,2.0339,3682.2,3682.1,0.25275092]
[1753191446997,9.31366774,3682.2,3682.1,0.25275092]
[1753191447358,4.4238707,3682.2,3682.1,0.25275092]
[1753191447560,1.70810296,3682.2,3682.1,0.25275092]
[1753191447798,5.8338,3682.2,3682.1,0.38795092]
[1753191448459,1.2698,3682.2,3682.1,0.38795092]
[1753191448966,0.14853982,3682.2,3682.1,0.38795092]
[1753191449485,0.61833982,3682.2,3682.1,0.38795092]
[1753191449887,3.18556774,3682.2,3682.1,0.38795092]
[1753191450089,6.18556774,3682.2,3682.1,0.25275092]
[1753191450291,22.68130757,3682.2,3682.1,0.25275092]
[1753191450503,23.23130757,3682.2,3682.1,0.25275092]
[1753191451203,26.57046774,3682.2,3682.1,0.25275092]
[1753191451612,2.7166368,3681.1,3679.9,7.3253]
[1753191451774,2.74386914,3681.0,3680.9,0.1352]
[1753191452279,14.99701606,3681.0,3680.1,4.0]
[1753191452465,14.99701606,3681.0,3680.7,0.1352]
[1753191452466,2.71680069,3680.8,3680.7,0.1352]
[1753191452669,2.71706669,3680.5,3679.9,0.8103]
[1753191452898,0.02721606,3680.6,3680.5,0.1352]
[1753191453105,0.4698,3680.6,3680.5,0.1352]
[1753191453303,3.18674832,3680.6,3680.5,0.1352]
[1753191454612,0.4698,3680.6,3680.5,0.1352]
[1753191455107,7.78621046,3680.6,3680.5,0.1352]
[1753191455406,2.71753899,3679.8,3679.7,0.1352]
[1753191455705,19.064,3679.8,3679.5,0.1352]
[1753191455906,19.064,3679.8,3679.4,0.001]
[1753191455907,14.5,3679.8,3679.7,0.1352]
[1753191456109,4.565,3680.3,3679.7,0.42058329]
[1753191456278,7.59221606,3680.4,3680.2,0.1352]
[1753191456479,7.565,3680.4,3680.2,0.1352]
[1753191456812,0.6357,3681.0,3680.2,2.85244362]
[1753191456975,4.565,3681.0,3680.9,0.1352]
[1753191457180,5.0348,3681.0,3680.9,0.1352]
[1753191457523,14.5,3681.3,3681.2,2.71650548]
[1753191457714,4.565,3681.7,3680.9,0.1352]
[1753191457888,4.564,3681.7,3681.2,0.1352]
[1753191458083,14.5,3681.6,3681.5,0.1352]
[1753191458711,17.68601034,3681.6,3681.5,0.1352]
[1753191458913,14.9698,3681.6,3681.2,0.1352]
[1753191459119,0.4698,3681.5,3681.2,0.1352]
[1753191459409,19.064,3681.6,3681.4,2.85150883]
[1753191459606,19.064,3681.6,3681.4,0.1352]
[1753191460005,0.49701606,3681.5,3681.4,0.1352]
[1753191461013,14.5,3681.6,3681.4,2.85155654]
[1753191461175,14.5,3681.6,3681.4,0.1352]
[1753191461393,0.49701606,3681.5,3681.4,0.1352]
[1753191461894,3.21330018,3681.5,3681.4,0.1352]
[1753191462095,2.71651755,3681.2,3681.0,0.1352]
[1753191462294,0.02721606,3681.1,3681.0,0.1352]
[1753191462519,0.4698,3681.8,3681.0,0.1352]
[1753191462721,4.564,3681.5,3681.0,2.85178934]
[1753191462906,5.0338,3681.5,3681.1,0.1352]
[1753191463108,2.71650548,3681.2,3681.1,0.1352]
[1753191463324,0.6357,3680.9,3679.9,0.7514]
[1753191463623,2.71691313,3680.7,3680.6,0.1352]
[1753191463824,0.49701606,3680.7,3680.3,0.1352]
[1753191464130,2.71702214,3680.5,3680.3,0.1352]
[1753191464294,0.4698,3680.4,3680.3,0.1352]
[1753191464497,0.7709,3680.9,3680.3,0.1352]
[1753191464710,4.564,3680.8,3680.3,0.1352]
[1753191465050,17.68668708,3680.7,3680.3,0.1352]
[1753191465232,14.9698,3680.7,3680.3,0.1352]
[1753191465410,0.4698,3680.6,3680.3,0.1352]
[1753191465606,0.4698,3680.5,3680.3,0.1352]
[1753191466040,14.5,3680.4,3680.3,0.1352]
[1753191466899,14.5,3680.4,3680.3,2.85236979]
[1753191467113,14.5,3680.4,3680.3,0.1352]
[1753191467346,14.5,3680.4,3680.3,2.85236979]
[1753191468041,14.5,3680.4,3680.3,0.1352]
[1753191468506,14.5,3680.4,3680.3,2.85236979]
[1753191468846,14.5,3680.4,3680.3,0.1352]
[1753191469346,14.9491,3680.4,3680.3,0.1352]
[1753191469636,14.5,3680.4,3680.3,0.1352]
[1753191470011,14.9491,3680.4,3680.3,0.1352]
[1753191470537,14.5,3680.4,3680.3,0.1352]
[1753191470827,14.9491,3680.4,3680.1,0.001]
[1753191471126,5.0131,3680.3,3680.1,0.1362]
[1753191471335,0.4491,3680.3,3680.1,0.1362]
[1753191471517,4.564,3680.5,3680.1,0.001]
[1753191471719,17.24436734,3680.4,3680.3,0.1352]
[1753191471920,14.9491,3680.4,3680.3,0.1352]
[1753191472120,19.5121,3680.4,3680.3,0.1352]
[1753191472496,22.22919596,3680.4,3680.3,0.38758201]
[1753191472908,19.5121,3680.4,3680.3,0.38758201]
[1753191473113,22.22919596,3680.4,3680.3,0.38758201]
[1753191473407,14.5,3680.4,3680.3,0.38758201]
[1753191473819,0.4491,3681.2,3680.3,0.38758201]
[1753191474012,4.563,3681.1,3680.4,2.96943561]
[1753191474214,14.5,3681.0,3680.5,2.96937714]
[1753191474556,4.563,3680.9,3680.6,0.25238201]
[1753191474709,4.563,3680.8,3680.7,0.38758201]
[1753191475110,7.72890069,3680.8,3680.7,0.38758201]
[1753191475465,7.72890479,3680.8,3680.5,0.1352]
[1753191475613,4.563,3680.8,3680.5,0.1352]
[1753191475965,0.4491,3680.7,3680.5,0.1352]
[1753191476542,5.0121,3680.7,3680.5,0.1352]
[1753191476722,0.4491,3680.7,3680.5,2.85221502]
[1753191477146,14.5,3681.0,3680.5,0.1352]
[1753191477317,4.562,3680.9,3680.5,2.85220045]
[1753191477512,5.0111,3680.9,3680.5,2.71700045]
[1753191477717,0.4491,3680.9,3680.8,0.1352]
[1753191480126,0.47631606,3680.9,3680.8,0.1352]
[1753191480325,14.5,3681.0,3680.9,2.71672688]
[1753191480646,14.5,3681.0,3680.8,0.1352]
[1753191480963,3.0,3681.4,3680.8,0.1352]
[1753191481136,0.1352,3681.8,3680.9,0.45716726]
[1753191481339,0.002,3682.1,3681.8,2.71601639]
[1753191481535,0.002,3682.1,3681.7,0.1352]
[1753191481748,0.002,3682.1,3682.0,0.1352]
[1753191482756,2.7178415,3682.1,3682.0,0.1352]
[1753191482962,3.19415756,3682.1,3682.0,0.38906982]
[1753191483164,3.1669415,3682.1,3682.0,0.25386982]
[1753191483366,3.9669415,3682.1,3682.0,0.25386982]
[1753191483567,3.1669415,3682.1,3682.0,0.25386982]
[1753191483873,0.002,3682.1,3682.0,0.25386982]
[1753191484060,2.7178415,3682.1,3682.0,0.38906982]
[1753191484461,0.002,3682.1,3682.0,0.38906982]
[1753191484664,14.5,3682.2,3682.0,0.38906982]
[1753191484964,14.5,3682.2,3682.1,0.25386982]
[1753191485763,17.66486774,3682.2,3682.1,0.25386982]
[1753191486149,23.99035451,3682.2,3682.1,0.25386982]
[1753191486551,14.5,3682.2,3682.1,0.25386982]
[1753191486752,14.5,3682.2,3682.1,0.38906982]
[1753191486952,17.21576774,3682.2,3682.1,0.38906982]
[1753191487130,17.66486774,3682.2,3682.1,0.38906982]
[1753191487338,17.66486774,3682.2,3682.1,0.25386982]
[1753191487534,5.65882263,3682.2,3682.1,0.25386982]
[1753191487733,3.71486774,3682.2,3682.1,0.25386982]
[1753191488347,3.96486774,3682.2,3682.1,0.25386982]
[1753191488567,23.02286774,3682.2,3682.1,0.25386982]
[1753191488757,15.7491,3682.2,3682.1,0.25386982]
[1753191488957,15.3,3682.2,3682.1,0.25386982]
[1753191489743,14.5,3682.2,3682.1,0.25386982]
[1753191489945,17.21576774,3682.2,3682.1,0.25386982]
[1753191490275,14.5,3682.2,3682.1,0.25386982]
[1753191490793,0.4491,3682.6,3682.1,0.38906982]
[1753191490993,0.002,3682.9,3682.2,5.24086982]
[1753191491159,0.002,3682.9,3682.4,2.7155491]
[1753191491346,0.002,3682.9,3682.8,0.1352]
[1753191491548,2.71725156,3682.9,3682.8,0.38906982]
[1753191491861,5.74446762,3682.9,3682.8,0.25386982]
[1753191492058,6.71635156,3682.9,3682.8,0.25386982]
[1753191492260,6.03593977,3682.9,3682.8,0.25386982]
[1753191492590,18.30205156,3682.9,3682.8,0.25386982]
[1753191492752,21.77425156,3682.9,3682.8,0.25386982]
[1753191492947,14.502,3682.9,3682.8,0.25386982]
[1753191493175,17.21725156,3682.9,3682.8,0.38906982]
[1753191493382,14.502,3682.9,3682.8,0.38906982]
[1753191493790,17.21725156,3682.9,3682.8,0.38906982]
[1753191494285,14.502,3682.9,3682.8,0.38906982]
[1753191494491,17.21725156,3682.9,3682.8,0.38906982]
[1753191494779,14.502,3682.9,3682.8,0.38906982]
[1753191495284,0.002,3682.9,3682.8,1.21236982]
[1753191495471,0.002,3682.9,3682.8,4.32048559]
[1753191495672,0.002,3682.9,3682.8,1.6051603]
[1753191495848,3.80205156,3682.9,3682.8,0.25386982]
[1753191496052,6.82926762,3682.9,3682.8,0.25386982]
[1753191496390,21.30205156,3682.9,3682.8,0.25386982]
[1753191496775,24.77225156,3682.9,3682.8,0.25386982]
[1753191497274,21.77225156,3682.9,3682.8,0.25386982]
[1753191497469,21.77225156,3682.9,3682.3,3.96386982]
[1753191497675,2.71537499,3682.8,3682.3,3.96386982]
[1753191497882,14.502,3682.9,3682.3,6.6795593]
[1753191498186,14.502,3682.9,3682.3,6.67950638]
[1753191498492,2.71540408,3682.7,3682.3,3.96386982]
[1753191498916,2.7155465,3682.5,3682.3,3.96386982]
[1753191499107,0.4516,3682.6,3682.3,3.96386982]
[1753191499261,0.4516,3682.6,3681.7,0.8317]
[1753191499262,2.71582101,3682.2,3681.9,3.96386982]
[1753191499591,0.02721606,3682.3,3681.9,3.96386982]
[1753191499891,3.0,3682.4,3681.9,3.96386982]
[1753191500108,2.71571549,3682.3,3681.9,3.96386982]
[1753191500289,2.71575826,3682.3,3681.9,3.96386982]
[1753191500600,5.71564422,3682.4,3681.9,3.96386982]
[1753191500766,2.71557111,3682.5,3681.9,3.96386982]
[1753191500968,2.71542119,3682.7,3681.9,5.18082394]
[1753191501168,2.71542119,3682.7,3682.0,2.71586926]
[1753191501169,2.71539902,3682.7,3682.0,2.71586926]
[1753191501361,14.502,3682.9,3681.9,5.15366405]
[1753191501564,14.502,3682.9,3682.3,2.71568447]
[1753191501812,14.502,3682.9,3682.4,2.71560009]
[1753191502181,17.21725452,3682.9,3682.2,7.26875351]
[1753191502502,14.502,3682.9,3682.3,2.71566821]
[1753191502700,0.002,3682.9,3682.4,2.71560034]
[1753191502899,0.002,3682.9,3682.7,2.71539071]
[1753191503100,0.002,3682.9,3682.7,2.71535072]
[1753191503302,0.002,3682.9,3682.8,2.71532529]
[1753191503600,0.002,3682.9,3682.5,4.75256982]
[1753191503811,2.71547276,3682.6,3682.5,3.96386982]
[1753191503978,2.71563925,3682.4,3682.0,3.96386982]
[1753191504308,2.71578805,3682.2,3682.0,3.96386982]
[1753191504508,4.552,3682.5,3682.0,3.96386982]
[1753191504666,0.4516,3682.2,3681.5,3.96386982]
[1753191504873,2.71619183,3681.7,3681.4,4.0]
[1753191505191,3.16779183,3681.7,3681.4,4.0]
[1753191505400,14.5,3681.6,3681.2,8.07134483]
[1753191505919,14.5,3681.6,3681.5,0.1352]
[1753191506923,2.71601458,3681.9,3681.5,0.1352]
[1753191507122,4.551,3682.0,3681.5,0.1352]
[1753191507342,0.1352,3682.2,3681.5,0.1352]
[1753191507516,0.6357,3681.8,3681.5,0.1352]
[1753191507723,2.71657747,3681.2,3680.8,0.1362]
[1753191507916,2.71659556,3681.1,3680.8,4.1362]
[1753191508222,7.26736421,3681.4,3680.8,4.1362]
[1753191508223,2.71666896,3681.0,3680.8,0.1362]
[1753191508388,4.551,3681.4,3680.8,0.1362]
[1753191508808,4.551,3681.4,3681.0,0.1352]
[1753191509008,2.71644763,3681.3,3681.0,0.1352]
[1753191509213,2.71651009,3681.2,3681.0,0.1352]
[1753191509410,0.4516,3681.4,3681.1,0.25356026]
[1753191509638,3.0,3681.6,3681.2,0.25356026]
[1753191509930,2.71637187,3681.4,3681.3,0.25356026]
[1753191510237,7.26614155,3681.7,3681.3,0.25356026]
[1753191510443,2.71621563,3681.6,3681.4,0.25356026]
[1753191510643,7.71775192,3681.7,3681.5,0.25356026]
[1753191510856,4.55,3681.7,3681.6,0.25356026]
[1753191511008,0.1352,3681.9,3681.6,0.25356026]
[1753191511206,5.7157403,3682.3,3681.8,0.1352]
[1753191511408,3.0,3682.3,3681.9,2.96953747]
[1753191511640,2.71554652,3682.5,3682.0,2.96945239]
[1753191511641,3.0,3682.5,3682.0,2.96945239]
[1753191511845,3.0,3682.5,3681.8,0.1352]
[1753191511846,2.85069651,3682.6,3682.1,0.25356026]
[1753191512143,3.0,3682.6,3682.2,0.38876026]
[1753191512308,3.0,3682.6,3682.3,0.25356026]
[1753191512508,3.0,3682.6,3682.4,0.25356026]
[1753191512841,3.0,3682.6,3681.5,0.7862]
[1753191512842,3.02920288,3682.6,3682.5,0.25354837]
[1753191513038,7.57820288,3682.6,3682.5,0.25354837]
[1753191513263,0.002,3682.9,3682.5,0.25354837]
[1753191513547,0.002,3682.9,3682.8,2.71532529]
[1753191513747,0.002,3682.9,3682.8,3.10407366]
[1753191513964,0.002,3682.9,3682.8,3.57292691]
[1753191514145,0.1352,3684.1,3682.9,2.71523867]
[1753191514348,0.1352,3684.1,3683.0,0.25354837]
[1753191514550,0.1352,3684.1,3683.6,2.84992814]
[1753191514722,0.002,3684.4,3684.0,2.71438487]
[1753191514914,0.002,3684.4,3684.1,0.25339772]
[1753191515107,0.002,3684.4,3684.3,0.1352]
[1753191515316,0.002,3684.4,3684.3,0.38859772]
[1753191516741,0.002,3684.4,3684.3,4.93559772]
[1753191516930,0.002,3684.4,3684.3,0.38859772]
[1753191517126,0.002,3684.4,3684.3,4.93559772]
[1753191517869,2.71614612,3684.4,3684.3,0.38859772]
[1753191518168,0.002,3684.4,3684.3,0.38859772]
[1753191518360,2.71614612,3684.4,3684.3,0.38859772]
[1753191518670,0.002,3684.4,3684.3,0.38859772]
[1753191519571,0.002,3684.4,3684.3,3.10281751]
[1753191519870,0.002,3684.4,3684.3,4.84632926]
[1753191520308,0.002,3684.4,3684.3,4.87347145]
[1753191520892,0.002,3684.4,3684.3,8.84632926]
[1753191521193,0.002,3684.4,3684.3,13.39032926]
[1753191521941,0.002,3684.4,3684.3,8.84632926]
[1753191522271,0.002,3684.4,3684.3,5.16789772]
[1753191522508,0.002,3684.4,3684.3,8.93159772]
[1753191522638,3.16774612,3684.4,3684.3,0.38859772]
[1753191522982,6.16774612,3684.4,3684.3,0.25339772]
[1753191523164,7.0694411,3684.4,3684.3,0.25339772]
[1753191523885,5.71614612,3684.4,3684.3,0.25339772]
[1753191524169,0.002,3684.4,3684.3,0.25339772]
[1753191524782,0.002,3684.4,3684.3,3.40931751]
[1753191524934,0.6357,3685.3,3684.3,3.40931751]
[1753191524935,0.6357,3685.3,3684.3,0.69509772]
[1753191525136,2.71356388,3685.2,3684.5,2.71403269]
[1753191525365,2.71356388,3685.2,3684.4,4.79539772]
[1753191525366,2.71369818,3685.1,3684.6,4.79539772]
[1753191525561,0.4516,3685.4,3684.7,0.25339772]
[1753191525762,2.71345715,3685.4,3684.8,0.25339772]
[1753191526005,2.71345715,3685.4,3684.9,0.25339772]
[1753191526203,2.71345715,3685.4,3684.8,4.542]
[1753191526204,2.71345715,3685.4,3685.0,0.25339772]
[1753191526501,0.93902714,3685.7,3685.1,0.25339772]
[1753191526703,3.0,3685.6,3685.2,0.25339772]
[1753191527003,0.4516,3685.5,3685.3,0.25339772]
[1753191527175,0.4516,3685.5,3685.4,0.25339772]
[1753191527778,3.93902714,3685.7,3685.4,0.25339772]
[1753191527779,0.93902714,3685.7,3685.4,0.25339772]
[1753191527984,0.93902714,3685.7,3685.5,0.25339772]
[1753191528180,0.93902714,3685.7,3685.6,0.25339772]
[1753191528597,4.09231595,3685.7,3685.6,0.25339772]
[1753191528808,2.12363897,3685.7,3685.6,0.25339772]
[1753191529111,1.37912714,3685.7,3685.6,0.25339772]
[1753191529316,1.37912714,3685.7,3685.1,7.25360859]
[1753191529622,0.002,3685.9,3685.2,0.25160999]
[1753191529776,0.002,3685.9,3685.3,0.25160999]
[1753191530082,0.002,3685.9,3685.4,2.71335408]
[1753191530289,0.002,3685.9,3685.1,5.3084]
[1753191530290,0.002,3685.9,3685.5,0.25154335]
[1753191530497,0.002,3685.9,3685.6,0.25154335]
[1753191530820,0.002,3685.9,3685.7,0.25154335]
[1753191531117,0.002,3685.9,3685.8,0.25154335]
[1753191532598,0.002,3685.9,3685.8,2.96465854]
[1753191533205,0.002,3685.9,3685.8,0.25154335]
[1753191534205,0.002,3685.9,3685.8,0.38674335]
[1753191534719,0.002,3685.9,3685.8,3.09985854]
[1753191535122,0.002,3685.9,3685.8,3.86235854]
[1753191535549,0.002,3685.9,3685.8,5.48023559]
[1753191535837,0.002,3685.9,3685.8,5.45310444]
[1753191536427,0.002,3685.9,3685.8,9.41697426]
[1753191536739,0.002,3685.9,3685.8,5.45310444]
[1753191537140,0.002,3686.8,3685.8,4.97748925]
[1753191537343,0.002,3686.8,3686.7,2.71245287]
[1753191537509,0.002,3686.8,3686.7,7.49899622]
[1753191537708,0.002,3686.8,3686.7,8.46209622]
[1753191537907,0.002,3686.8,3686.7,8.89799622]
[1753191538334,0.002,3686.8,3686.7,11.89799622]
[1753191538639,0.002,3686.8,3686.7,13.35863938]
[1753191539209,1e-08,3686.8,3686.7,13.35863938]
[1753191539410,0.002,3687.5,3687.4,2.71193795]
[1753191539635,0.002,3687.5,3687.4,8.27907093]
[1753191539943,0.002,3687.5,3687.4,8.85017093]
[1753191540145,0.002,3687.5,3687.4,1.16833298]
[1753191540349,0.002,3687.5,3687.4,0.38633298]
[1753191540555,3.1539644,3687.5,3687.4,0.38633298]
[1753191540754,3.53293084,3687.5,3687.4,0.25113298]
[1753191540953,6.53293084,3687.5,3687.4,0.25113298]
[1753191541414,6.1539644,3687.5,3687.4,0.25113298]
[1753191542551,0.002,3687.5,3687.4,0.25113298]
[1753191542756,2.7138644,3687.5,3687.4,0.38633298]
[1753191542969,0.002,3687.5,3687.4,0.38633298]
[1753191543185,2.7138644,3687.5,3687.4,0.38633298]
[1753191543357,0.002,3687.5,3687.4,0.25166251]
[1753191543673,0.002,3687.5,3687.4,4.70028671]
[1753191543830,0.002,3687.5,3687.4,6.08244876]
[1753191544038,0.002,3687.5,3687.4,8.79438671]
[1753191544876,0.002,3687.5,3687.4,0.25166251]
[1753191545076,0.002,3687.5,3687.4,4.78166251]
[1753191545376,2.7138644,3687.5,3687.4,0.25166251]
[1753191545587,0.002,3687.5,3687.4,0.25166251]
[1753191545735,0.4421,3687.5,3687.4,0.25166251]
[1753191545935,3.1539644,3687.5,3687.4,0.25166251]
[1753191547634,2.7138644,3687.5,3687.4,0.25166251]
[1753191548331,3.1539644,3687.5,3687.4,0.25166251]
[1753191548752,0.002,3687.5,3687.4,0.25166251]
[1753191548959,2.7138644,3687.5,3687.4,0.25166251]
[1753191550072,3.1539644,3687.5,3687.4,0.25166251]
[1753191551366,4.05405302,3687.5,3687.4,0.25166251]
[1753191551602,4.18925302,3687.5,3687.4,0.25166251]
[1753191551871,3.86386312,3687.5,3687.4,0.25166251]
[1753191552049,2.9637745,3687.5,3687.4,0.25166251]
[1753191552636,0.1352,3687.5,3687.4,0.25166251]
[1753191552832,0.7709,3687.9,3687.4,0.25166251]
[1753191553067,2.71179086,3687.6,3687.5,0.25166251]
[1753191553388,3.15189086,3687.6,3687.5,0.25166251]
[1753191554534,2.71179086,3687.6,3687.5,0.25166251]
[1753191555038,0.6357,3687.9,3687.5,0.25166251]
[1753191555039,3.34727123,3687.9,3687.5,0.25166251]
[1753191555238,2.71171733,3687.7,3687.6,0.25166251]
[1753191555495,0.6357,3687.9,3687.6,0.25166251]
[1753191555737,7.9661,3688.3,3687.7,0.25166251]
[1753191555738,2.7113497,3688.2,3687.7,0.25166251]
[1753191555887,2.71153511,3688.0,3687.8,0.25166251]
[1753191556094,0.002,3688.3,3687.9,0.25166251]
[1753191556342,0.002,3688.3,3688.0,4.77566251]
[1753191556503,2.7113497,3688.2,3688.1,0.25166251]
[1753191556702,0.002,3688.3,3688.1,0.25166251]
[1753191556999,0.002,3688.3,3688.2,0.25166251]
[1753191557204,0.002,3688.3,3688.2,0.72922876]
[1753191557608,0.002,3688.3,3688.2,3.44057846]
[1753191557803,0.002,3688.3,3688.2,0.72922876]
[1753191558500,3.15207619,3688.3,3688.2,0.25166251]
[1753191558809,2.71327619,3688.3,3688.2,0.25166251]
[1753191559220,0.002,3688.3,3688.2,0.25166251]
[1753191559619,0.4388,3688.8,3688.2,2.96293999]
[1753191559818,0.6357,3689.2,3688.3,0.25166251]
[1753191560021,2.71093632,3688.8,3688.4,0.25166251]
[1753191560223,2.71093632,3688.8,3688.5,4.77266251]
[1753191560423,5.71081588,3689.0,3688.6,0.25166251]
[1753191560627,3.1496145,3689.0,3688.7,0.25166251]
[1753191560950,2.71084084,3688.9,3688.5,4.521]
[1753191561509,2.71099179,3688.7,3688.5,4.521]
[1753191561910,0.4388,3688.9,3688.5,4.521]
[1753191562111,0.4388,3688.8,3688.5,4.521]
[1753191562368,2.71068824,3689.1,3688.5,5.05511]
[1753191562529,0.6357,3689.2,3688.5,7.76621499]
[1753191562719,0.6357,3689.2,3688.5,5.05511]
[1753191562720,2.7107342,3689.1,3688.5,5.05511]
[1753191562908,2.71077808,3689.0,3688.5,5.05511]
[1753191563112,2.71077808,3689.0,3688.5,4.521]
[1753191563483,2.7102849,3689.7,3688.5,4.521]
[1753191563484,0.002,3689.9,3688.6,3.16503542]
[1753191563760,0.002,3689.9,3689.5,3.46447208]
[1753191563928,0.002,3689.9,3689.6,7.22931639]
[1753191564324,0.002,3689.9,3689.8,0.1352]
[1753191565058,0.002,3689.9,3689.8,3.38620399]
[1753191565238,0.002,3689.9,3689.8,3.84020399]
[1753191565436,0.002,3689.9,3689.8,3.38620399]
[1753191565748,0.002,3689.9,3689.8,3.84020399]
[1753191565914,0.002,3689.9,3689.8,7.59430399]
[1753191566115,1e-08,3689.9,3689.8,11.59430399]
[1753191568719,1e-08,3689.9,3689.8,5.88413]
[1753191568919,1e-08,3689.9,3689.8,4.8893]
[1753191569120,1e-08,3689.9,3689.8,9.4043]
[1753191569539,1e-08,3689.9,3689.8,4.8893]
[1753191570044,1e-08,3689.9,3689.8,8.6492]
[1753191570417,1e-08,3689.9,3689.8,4.1352]
[1753191570616,1e-08,3689.9,3689.8,4.6492]
[1753191571019,0.43880001,3689.9,3689.8,0.1352]